bitfinex/quotes_SOLUSD_20241213
["timestamp","ask_amount","ask_price","bid_price","bid_amount"]
[1734066852703,0.12549,226.59,226.53,8.26812037]
[1734066855070,24.027864,226.61,226.53,8.26812037]
[1734066855280,0.12549,226.59,226.54,8.26812037]
[1734066855795,0.12549,226.6,226.54,8.26812037]
[1734066857703,8.39361037,226.6,226.53,8.26812037]
[1734066872022,0.12549,226.59,226.53,8.26812037]
[1734066879426,0.12549,226.59,226.52,8.26812037]
[1734066879625,0.12549,226.59,226.26,91.48598011]
[1734066879626,8.26812037,226.57,226.41,11.70368872]
[1734066879923,8.39361037,226.56,226.49,8.26812037]
[1734066881409,0.12549,226.56,226.5,8.26812037]
[1734066882003,1.5441,226.55,226.41,12.8389892]
[1734066882219,1.5441,226.55,226.49,8.26812037]
[1734066886221,1.5441,226.55,226.48,8.26812037]
[1734066886422,1.5441,226.55,226.49,8.26812037]
[1734066888007,0.0231,226.55,226.49,8.26812037]
[1734066891530,8.29122037,226.55,226.42,3.31962821]
[1734066891833,8.29122037,226.55,226.48,8.26812037]
[1734066893929,8.29122037,226.55,226.42,3.31962821]
[1734066893930,0.0231,226.55,226.49,8.26812037]
[1734066896806,0.14859,226.55,226.49,8.26812037]
[1734066901010,0.14859,226.55,226.42,0.66229845]
[1734066901239,0.14859,226.55,226.49,8.26812037]
[1734066901710,23.925474,226.55,226.42,0.66229845]
[1734066901911,0.12549,226.53,226.39,0.662292]
[1734066902106,8.39361037,226.53,226.46,8.26812037]
[1734066902535,8.39361037,226.53,226.39,0.662292]
[1734066902735,0.12549,226.49,226.37,1.76390264]
[1734066902944,0.12549,226.49,226.43,8.26812037]
[1734066904122,11.0358,226.54,226.45,8.26812037]
[1734066904320,11.0358,226.54,226.38,33.07248148]
[1734066904321,20.0231,226.55,226.49,8.26812037]
[1734066905718,0.12549,226.54,226.49,8.26812037]
[1734066906119,20.0231,226.55,226.5,8.26812037]
[1734066908150,20.0231,226.55,226.49,8.26812037]
[1734066910631,0.12549,226.54,226.42,20.0]
[1734066910837,8.39361037,226.54,226.47,8.26812037]
[1734066911149,8.26812037,226.53,226.42,20.0]
[1734066911449,8.26812037,226.53,226.47,8.26812037]
[1734066911751,8.26812037,226.53,226.46,8.26812037]
[1734066913264,0.12549,226.52,226.46,8.26812037]
[1734066913565,0.12549,226.52,226.47,8.26812037]
[1734066913764,0.12549,226.54,226.5,8.26812037]
[1734066916346,0.12549,226.54,226.49,8.26812037]
[1734066919858,0.12549,226.54,226.48,8.26812037]
[1734066921351,32.17049437,226.54,226.47,8.26812037]
[1734066922746,23.902374,226.54,226.48,8.26812037]
[1734066926721,0.12549,226.54,226.48,8.26812037]
[1734066926926,0.12549,226.54,226.49,8.26812037]
[1734066927746,20.0231,226.55,226.5,8.26812037]
[1734066931439,20.0231,226.55,226.43,0.66224427]
[1734066931440,20.0231,226.55,226.51,8.26812037]
[1734066931747,20.0,226.55,226.52,8.26812037]
[1734066932142,6.563,226.58,226.54,8.26812037]
[1734066932342,1.6461,226.6,226.57,8.26812037]
[1734066932557,17.75399823,226.61,226.57,8.26812037]
[1734066933148,17.75399823,226.61,226.56,8.26812037]
[1734066936351,17.75399823,226.61,226.57,8.26812037]
[1734066938572,17.75399823,226.61,226.58,8.26812037]
[1734066938861,17.75399823,226.61,226.59,8.26812037]
[1734066940140,0.12549,226.64,226.59,8.26812037]
[1734066940664,6.2663,226.68,226.63,8.26812037]
[1734066940961,9.83362037,226.71,226.63,8.26812037]
[1734066941331,1.5655,226.71,226.64,8.26812037]
[1734066942178,9.83362037,226.71,226.64,8.26812037]
[1734066945365,20.0,226.7,226.57,3.36383286]
[1734066945542,20.0,226.7,226.65,8.26812037]
[1734066948247,20.0,226.7,226.6,33.07248148]
[1734066948248,6.5971,226.73,226.67,8.26812037]
[1734066948452,13.10126131,226.75,226.67,8.26812037]
[1734066948877,13.10126131,226.75,226.6,33.07248148]
[1734066948878,13.10126131,226.75,226.68,8.26812037]
[1734066949873,0.12549,226.74,226.68,8.26812037]
[1734066950274,8.26812037,226.73,226.66,8.26812037]
[1734066950773,0.12549,226.72,226.66,8.26812037]
[1734066952387,32.29598437,226.74,226.66,8.26812037]
[1734066953872,8.26812037,226.73,226.57,14.39763286]
[1734066954070,8.26812037,226.72,226.65,8.26812037]
[1734066954270,0.12549,226.71,226.65,8.26812037]
[1734066957299,6.85605837,226.72,226.65,8.26812037]
[1734066959278,23.902374,226.74,226.57,1.5583]
[1734066959279,8.39361037,226.71,226.57,1.5583]
[1734066959484,8.26812037,226.71,226.64,8.26812037]
[1734066959692,0.12549,226.71,226.57,1.5583]
[1734066959894,0.12549,226.71,226.66,8.26812037]
[1734066960113,6.5339,226.72,226.66,8.26812037]
[1734066960579,6.5339,226.72,226.67,8.26812037]
[1734066961276,6.5339,226.72,226.6,33.07248148]
[1734066961584,6.5339,226.72,226.66,8.26812037]
[1734066962310,15.85864094,226.75,226.67,8.26812037]
[1734066962482,20.0,226.72,226.67,8.26812037]
[1734066963878,20.0,226.72,226.66,8.26812037]
[1734066964382,23.776884,226.71,226.66,8.26812037]
[1734066965887,23.776884,226.71,226.67,8.26812037]
[1734066966275,20.0,226.72,226.68,8.26812037]
[1734066966484,23.902374,226.75,226.69,8.26812037]
[1734066967373,23.902374,226.75,226.7,8.26812037]
[1734066973608,23.902374,226.75,226.71,8.26812037]
[1734066973787,23.902374,226.75,226.7,8.26812037]
[1734066979507,23.902374,226.75,226.69,8.26812037]
[1734066986097,23.902374,226.75,226.71,8.26812037]
[1734066987788,23.902374,226.75,226.61,11.0321]
[1734066988104,23.902374,226.75,226.69,8.26812037]
[1734066988615,0.12549,226.74,226.67,8.26812037]
[1734066990301,23.902374,226.73,226.67,8.26812037]
[1734066991311,0.12549,226.73,226.66,8.26812037]
[1734066991623,23.776884,226.73,226.67,8.26812037]
[1734066991916,0.12549,226.72,226.67,8.26812037]
[1734066993392,24.027864,226.74,226.67,8.26812037]
[1734066993792,0.12549,226.73,226.67,8.26812037]
[1734066995118,0.25098,226.74,226.68,8.26812037]
[1734066995603,0.25098,226.74,226.67,8.26812037]
[1734066997802,17.74106589,226.76,226.69,8.26812037]
[1734066998122,20.0,226.73,226.69,8.26812037]
[1734066999721,20.0,226.73,226.7,8.26812037]
[1734067000329,20.0,226.73,226.71,8.26812037]
[1734067000624,23.776884,226.75,226.72,8.26812037]
[1734067000923,23.776884,226.75,226.71,8.26812037]
[1734067006236,23.776884,226.75,226.63,11.031]
[1734067006437,23.776884,226.75,226.69,8.26812037]
[1734067010745,0.12549,226.74,226.6,33.07248148]
[1734067011038,0.25098,226.74,226.68,8.26812037]
[1734067017824,8.51910037,226.74,226.68,8.26812037]
[1734067018032,23.776884,226.73,226.68,8.26812037]
[1734067022643,23.776884,226.73,226.69,8.26812037]
[1734067023059,24.027864,226.74,226.69,8.26812037]
[1734067024066,32.29598437,226.74,226.68,8.26812037]
[1734067029390,0.12549,226.74,226.7,8.26812037]
[1734067038994,23.776884,226.75,226.71,8.26812037]
[1734067041475,0.5435078,226.78,226.74,8.26812037]
[1734067041676,0.5435078,226.78,226.71,33.07248148]
[1734067041677,6.6664,226.87,226.77,41.34060185]
[1734067041873,6.6664,226.87,226.86,8.26812037]
[1734067042075,6.6664,226.87,226.72,0.6613418]
[1734067042076,13.55976264,226.87,226.85,8.26812037]
[1734067042386,13.55976264,226.87,226.72,0.6613418]
[1734067042387,6.6664,226.87,226.86,8.26812037]
[1734067042568,1.6641,226.9,226.86,8.26812037]
[1734067042775,1.6641,226.9,226.88,8.26812037]
[1734067043492,1.6641,226.9,226.87,8.26812037]
[1734067043899,21.6641,226.9,226.87,8.26812037]
[1734067044100,20.0,226.89,226.76,1.6243]
[1734067044268,20.0,226.87,226.83,8.26812037]
[1734067044577,23.902374,226.86,226.83,8.26812037]
[1734067046787,1.6641,226.9,226.76,8.26812037]
[1734067046788,6.48,226.85,226.76,8.26812037]
[1734067046993,6.48,226.85,226.68,1.543]
[1734067046994,44.027864,226.87,226.79,8.26812037]
[1734067047257,52.29598437,226.87,226.8,8.26812037]
[1734067047666,52.29598437,226.87,226.71,33.07248148]
[1734067047667,52.29598437,226.87,226.79,8.26812037]
[1734067048580,23.776884,226.85,226.79,8.26812037]
[1734067049570,23.776884,226.86,226.79,8.26812037]
[1734067049771,32.04500437,226.86,226.79,8.26812037]
[1734067051690,32.04500437,226.86,226.78,8.26812037]
[1734067051691,8.26812037,226.85,226.78,8.26812037]
[1734067051882,23.776884,226.84,226.78,8.26812037]
[1734067053194,23.776884,226.86,226.78,8.26812037]
[1734067053390,23.776884,226.84,226.78,8.26812037]
[1734067054089,23.776884,226.86,226.78,8.26812037]
[1734067054281,32.04500437,226.86,226.78,8.26812037]
[1734067055206,23.776884,226.86,226.78,8.26812037]
[1734067055384,32.04500437,226.86,226.78,8.26812037]
[1734067056689,23.776884,226.86,226.78,8.26812037]
[1734067057010,32.04500437,226.86,226.78,8.26812037]
[1734067061609,8.26812037,226.85,226.78,8.26812037]
[1734067061918,23.776884,226.84,226.78,8.26812037]
[1734067062493,32.04500437,226.84,226.71,33.07248148]
[1734067062698,23.776884,226.82,226.76,8.26812037]
[1734067063512,32.04500437,226.82,226.75,8.26812037]
[1734067064091,28.98900437,226.82,226.75,8.26812037]
[1734067064515,8.26812037,226.82,226.75,8.26812037]
[1734067065317,8.26812037,226.84,226.76,8.26812037]
[1734067066308,23.776884,226.83,226.76,8.26812037]
[1734067067715,32.04500437,226.83,226.76,8.26812037]
[1734067070035,32.04500437,226.83,226.68,14.31931797]
[1734067070338,32.04500437,226.83,226.75,8.26812037]
[1734067071833,20.0,226.8,226.68,3.29071797]
[1734067072034,23.902374,226.81,226.72,8.26812037]
[1734067072279,23.902374,226.81,226.75,8.26812037]
[1734067072280,23.776884,226.81,226.75,8.26812037]
[1734067073428,23.776884,226.81,226.68,1.543]
[1734067073658,32.04500437,226.81,226.74,8.26812037]
[1734067073840,8.26812037,226.8,226.68,1.543]
[1734067074033,8.26812037,226.8,226.73,8.26812037]
[1734067076441,23.776884,226.81,226.73,8.26812037]
[1734067076643,23.776884,226.81,226.74,8.26812037]
[1734067076938,32.04500437,226.81,226.74,8.26812037]
[1734067086361,32.04500437,226.81,226.68,1.543]
[1734067086362,8.26812037,226.8,226.73,8.26812037]
[1734067086674,23.776884,226.81,226.73,8.26812037]
[1734067086864,8.26812037,226.8,226.73,8.26812037]
[1734067091744,8.26812037,226.8,226.63,11.0309]
[1734067091745,23.776884,226.79,226.63,11.0309]
[1734067092062,32.04500437,226.79,226.71,8.26812037]
[1734067093751,8.26812037,226.77,226.63,12.6373]
[1734067093950,8.26812037,226.77,226.7,8.26812037]
[1734067096649,32.17049437,226.76,226.69,8.26812037]
[1734067098355,8.26812037,226.75,226.63,1.6064]
[1734067098568,32.04500437,226.74,226.61,2.58706445]
[1734067098794,32.04500437,226.74,226.67,8.26812037]
[1734067098956,8.26812037,226.73,226.59,11.0327]
[1734067099167,8.26812037,226.72,226.59,12.76872111]
[1734067099471,8.26812037,226.72,226.65,8.26812037]
[1734067103773,23.776884,226.72,226.66,8.26812037]
[1734067108721,23.902374,226.74,226.69,8.26812037]
[1734067109291,23.902374,226.74,226.68,8.26812037]
[1734067112004,32.17049437,226.74,226.67,8.26812037]
[1734067112795,23.902374,226.74,226.68,8.26812037]
[1734067117997,32.17049437,226.74,226.67,8.26812037]
[1734067118382,8.26812037,226.72,226.65,8.26812037]
[1734067118592,8.26812037,226.72,226.6,25.46612566]
[1734067118794,8.26812037,226.71,226.64,8.26812037]
[1734067119398,32.04500437,226.7,226.63,8.26812037]
[1734067120710,23.776884,226.7,226.64,8.26812037]
[1734067121501,23.776884,226.7,226.65,8.26812037]
[1734067121817,23.776884,226.71,226.65,8.26812037]
[1734067124313,32.04500437,226.71,226.64,8.26812037]
[1734067126610,8.26812037,226.68,226.57,20.0]
[1734067126804,9.79462037,226.68,226.61,8.26812037]
[1734067127009,1.5265,226.68,226.62,8.26812037]
[1734067131819,1.5265,226.68,226.63,8.26812037]
[1734067132601,1.5265,226.68,226.64,8.26812037]
[1734067132808,20.0,226.7,226.66,8.26812037]
[1734067136219,20.0,226.7,226.65,8.26812037]
[1734067137910,1.5644,226.73,226.69,8.26812037]
[1734067145444,6.2727,226.75,226.69,8.26812037]
[1734067145829,6.2727,226.75,226.71,8.26812037]
[1734067146137,23.776884,226.77,226.71,8.26812037]
[1734067149425,1.6469,226.78,226.71,8.26812037]
[1734067150635,1.6469,226.78,226.72,8.26812037]
[1734067152661,1.6469,226.78,226.71,8.26812037]
[1734067155041,9.91502037,226.78,226.71,8.26812037]
[1734067155264,23.776884,226.74,226.61,11.0318]
[1734067155442,23.776884,226.74,226.67,8.26812037]
[1734067156168,32.04500437,226.74,226.67,8.26812037]
[1734067158281,23.776884,226.74,226.62,0.66171336]
[1734067158484,23.776884,226.74,226.67,8.26812037]
[1734067159071,32.04500437,226.74,226.62,0.66171336]
[1734067159260,32.04500437,226.74,226.67,8.26812037]
[1734067159780,24.027864,226.67,226.54,1.5575]
[1734067159983,8.26812037,226.65,226.58,8.26812037]
[1734067160779,24.027864,226.67,226.58,8.26812037]
[1734067160950,23.776884,226.69,226.64,8.26812037]
[1734067161273,32.04500437,226.71,226.65,8.26812037]
[1734067161473,32.04500437,226.71,226.64,8.26812037]
[1734067161775,8.26812037,226.7,226.64,8.26812037]
[1734067162570,8.26812037,226.7,226.63,8.26812037]
[1734067162950,32.04500437,226.71,226.64,8.26812037]
[1734067163573,8.26812037,226.7,226.56,0.66180919]
[1734067163755,8.26812037,226.69,226.63,8.26812037]
[1734067164271,8.26812037,226.69,226.56,0.66180919]
[1734067164590,23.776884,226.71,226.67,8.26812037]
[1734067164796,6.1941,226.73,226.68,8.26812037]
[1734067165168,6.1941,226.73,226.67,8.26812037]
[1734067165980,6.1941,226.73,226.66,8.26812037]
[1734067173296,6.1941,226.73,226.67,8.26812037]
[1734067185299,6.1941,226.73,226.66,1.77093661]
[1734067185300,14.46222037,226.73,226.66,8.26812037]
[1734067185682,32.04500437,226.71,226.64,8.26812037]
[1734067186201,23.776884,226.71,226.65,8.26812037]
[1734067193001,23.776884,226.71,226.66,8.26812037]
[1734067196807,23.776884,226.71,226.65,8.26812037]
[1734067198485,1.6644,226.72,226.65,8.26812037]
[1734067200626,1.6644,226.72,226.69,8.26812037]
[1734067200990,1.6644,226.72,226.68,8.26812037]
[1734067201198,8.26812037,226.76,226.68,8.26812037]
[1734067201395,8.26812037,226.76,226.61,13.47025276]
[1734067201396,8.26812037,226.76,226.69,8.26812037]
[1734067205435,23.776884,226.76,226.7,8.26812037]
[1734067205614,32.04500437,226.76,226.69,8.26812037]
[1734067206706,8.26812037,226.75,226.68,8.26812037]
[1734067207107,23.776884,226.76,226.68,8.26812037]
[1734067207301,32.04500437,226.76,226.69,8.26812037]
[1734067209640,8.26812037,226.75,226.69,8.26812037]
[1734067211112,8.26812037,226.75,226.64,13.48028175]
[1734067211309,8.26812037,226.72,226.65,8.26812037]
[1734067213622,8.26812037,226.73,226.66,8.26812037]
[1734067214315,8.26812037,226.74,226.67,8.26812037]
[1734067214531,8.39361037,226.75,226.68,8.26812037]
[1734067215026,23.776884,226.74,226.68,8.26812037]
[1734067215528,32.04500437,226.74,226.67,8.26812037]
[1734067217533,0.12549,226.75,226.67,8.26812037]
[1734067217715,8.26812037,226.74,226.67,8.26812037]
[1734067218339,0.12549,226.75,226.68,8.26812037]
[1734067218515,23.776884,226.74,226.68,8.26812037]
[1734067220938,23.776884,226.76,226.69,8.26812037]
[1734067221111,32.04500437,226.76,226.66,1.81608772]
[1734067221307,8.26812037,226.75,226.68,8.26812037]
[1734067222316,23.776884,226.76,226.68,8.26812037]
[1734067222533,32.04500437,226.76,226.69,8.26812037]
[1734067222747,32.04500437,226.76,226.68,8.26812037]
[1734067223822,8.26812037,226.75,226.68,8.26812037]
[1734067224015,8.26812037,226.75,226.63,12.83581343]
[1734067224016,32.04500437,226.74,226.67,8.26812037]
[1734067225137,23.776884,226.74,226.63,12.83581343]
[1734067225440,23.776884,226.74,226.67,8.26812037]
[1734067225641,23.776884,226.74,226.68,8.26812037]
[1734067228820,23.776884,226.74,226.66,8.26812037]
[1734067229023,23.776884,226.72,226.63,1.80491343]
[1734067229345,23.776884,226.72,226.64,8.26812037]
[1734067229542,32.04500437,226.72,226.64,8.26812037]
[1734067230223,32.04500437,226.72,226.65,8.26812037]
[1734067235334,23.776884,226.72,226.65,8.26812037]
[1734067235656,32.04500437,226.72,226.65,8.26812037]
[1734067236351,23.776884,226.72,226.65,8.26812037]
[1734067236650,32.04500437,226.72,226.65,8.26812037]
[1734067238864,23.776884,226.72,226.65,8.26812037]
[1734067239235,23.776884,226.72,226.66,8.26812037]
[1734067239433,23.902374,226.73,226.66,8.26812037]
[1734067242663,39.2867458,226.77,226.66,8.26812037]
[1734067242963,20.0,226.74,226.68,8.26812037]
[1734067243162,20.0,226.74,226.69,8.26812037]
[1734067243869,19.2867458,226.77,226.7,8.26812037]
[1734067244169,23.776884,226.76,226.71,8.26812037]
[1734067244331,19.2867458,226.77,226.71,8.26812037]
[1734067245030,27.55486617,226.77,226.65,20.0]
[1734067245235,27.55486617,226.77,226.7,8.26812037]
[1734067246283,19.2867458,226.77,226.72,8.26812037]
[1734067246584,17.7389458,226.77,226.72,8.26812037]
[1734067248360,17.7389458,226.77,226.73,8.26812037]
[1734067249281,32.29598437,226.81,226.74,8.26812037]
[1734067250384,24.027864,226.81,226.74,8.26812037]
[1734067250592,32.29598437,226.81,226.74,8.26812037]
[1734067254783,32.29598437,226.81,226.69,20.0]
[1734067255111,32.29598437,226.81,226.73,8.26812037]
[1734067255279,24.027864,226.81,226.73,8.26812037]
[1734067255485,32.29598437,226.81,226.73,8.26812037]
[1734067258312,24.027864,226.81,226.73,8.26812037]
[1734067258615,32.29598437,226.81,226.73,8.26812037]
[1734067260505,32.29598437,226.81,226.69,1.73123007]
[1734067260690,32.29598437,226.81,226.73,8.26812037]
[1734067261421,32.29598437,226.81,226.74,8.26812037]
[1734067262576,32.29598437,226.81,226.68,20.0]
[1734067262577,32.29598437,226.81,226.69,20.0]
[1734067262799,32.29598437,226.81,226.74,8.26812037]
[1734067263686,23.902374,226.81,226.76,8.26812037]
[1734067263886,23.776884,226.81,226.76,8.26812037]
[1734067265002,0.25098,226.8,226.76,8.26812037]
[1734067265588,89.6441,226.88,226.76,8.26812037]
[1734067265796,8.26812037,226.85,226.76,8.26812037]
[1734067267012,24.027864,226.84,226.76,8.26812037]
[1734067267307,24.027864,226.84,226.77,8.26812037]
[1734067267892,0.25098,226.84,226.79,8.26812037]
[1734067269298,7.8441,226.88,226.81,8.26812037]
[1734067269592,16.11222037,226.88,226.81,8.26812037]
[1734067270323,7.8441,226.88,226.82,8.26812037]
[1734067270512,24.027864,226.87,226.82,8.26812037]
[1734067270687,24.027864,226.87,226.81,8.26812037]
[1734067271511,32.29598437,226.87,226.8,8.26812037]
[1734067271715,32.29598437,226.87,226.75,12.78850731]
[1734067271936,32.29598437,226.85,226.75,1.76320731]
[1734067272219,32.29598437,226.85,226.77,8.26812037]
[1734067272561,32.29598437,226.85,226.78,8.26812037]
[1734067272827,6.1819,226.94,226.83,8.26812037]
[1734067272998,6.1819,226.94,226.92,8.26812037]
[1734067273315,1.6644,226.95,226.84,0.66134408]
[1734067273316,1.6644,226.95,226.93,8.26812037]
[1734067273527,6.54,226.99,226.94,8.26812037]
[1734067273986,6.54,226.99,226.84,0.66134408]
[1734067274189,8.26812037,226.97,226.9,8.26812037]
[1734067274411,8.26812037,226.96,226.89,8.26812037]
[1734067274615,23.902374,226.95,226.85,20.0]
[1734067274799,23.902374,226.95,226.89,8.26812037]
[1734067275724,0.12549,226.94,226.89,8.26812037]
[1734067275910,24.027864,226.96,226.9,8.26812037]
[1734067276726,32.29598437,226.96,226.89,8.26812037]
[1734067278324,0.25098,226.96,226.9,8.26812037]
[1734067278641,24.027864,226.94,226.88,8.26812037]
[1734067279324,32.29598437,226.94,226.88,8.26812037]
[1734067280244,8.26812037,226.93,226.87,8.26812037]
[1734067280403,24.027864,226.92,226.86,8.26812037]
[1734067280733,24.027864,226.86,226.73,11.0261]
[1734067281027,32.29598437,226.86,226.79,8.26812037]
[1734067281236,24.027864,226.86,226.8,8.26812037]
[1734067281601,24.027864,226.86,226.79,8.26812037]
[1734067281602,32.29598437,226.86,226.79,8.26812037]
[1734067281816,24.027864,226.86,226.79,8.26812037]
[1734067283018,24.027864,226.86,226.73,11.0261]
[1734067283352,24.027864,226.86,226.79,8.26812037]
[1734067284841,24.027864,226.86,226.8,8.26812037]
[1734067285145,6.6637,226.91,226.85,8.26812037]
[1734067285344,1.6506,226.93,226.86,8.26812037]
[1734067286235,9.91872037,226.93,226.86,8.26812037]
[1734067286431,0.25098,226.91,226.86,8.26812037]
[1734067287237,0.25098,226.91,226.85,8.26812037]
[1734067289213,0.25098,226.91,226.79,0.66110606]
[1734067289512,0.12549,226.87,226.81,8.26812037]
[1734067289739,0.25098,226.87,226.81,8.26812037]
[1734067291222,0.25098,226.87,226.75,1.7540888]
[1734067291439,0.25098,226.87,226.81,8.26812037]
[1734067291640,0.25098,226.87,226.82,8.26812037]
[1734067291847,0.25098,226.87,226.81,8.26812037]
[1734067292359,8.26812037,226.86,226.79,8.26812037]
[1734067292525,23.902374,226.85,226.79,8.26812037]
[1734067293432,23.902374,226.85,226.75,20.66128265]
[1734067293638,23.902374,226.85,226.79,8.26812037]
[1734067294952,23.902374,226.85,226.75,20.66128265]
[1734067295253,23.902374,226.85,226.79,8.26812037]
[1734067297651,23.902374,226.85,226.8,8.26812037]
[1734067300160,23.776884,226.86,226.8,8.26812037]
[1734067300327,0.12549,226.85,226.8,8.26812037]
[1734067300527,0.12549,226.85,226.76,20.0]
[1734067300726,0.12549,226.85,226.8,8.26812037]
[1734067303680,0.12549,226.85,226.8,7.76812037]
[1734067306153,8.51910037,226.83,226.73,0.66128327]
[1734067306457,8.51910037,226.83,226.68,26.0285]
[1734067306458,0.12549,226.81,226.76,8.26812037]
[1734067306665,0.25098,226.81,226.76,8.26812037]
[1734067306837,0.25098,226.81,226.77,8.26812037]
[1734067307039,6.5415,226.97,226.77,23.26812037]
[1734067307241,1.5417,226.96,226.89,8.26812037]
[1734067308639,24.027864,226.95,226.89,8.26812037]
[1734067310443,24.027864,226.95,226.83,0.66100074]
[1734067310644,32.29598437,226.95,226.81,11.022]
[1734067310869,32.29598437,226.95,226.87,8.26812037]
[1734067312758,23.902374,226.93,226.81,11.022]
[1734067313048,0.12549,226.92,226.87,8.26812037]
[1734067313250,0.12549,226.92,226.81,11.022]
[1734067313447,0.12549,226.92,226.87,8.26812037]
[1734067313764,0.12549,226.92,226.88,8.26812037]
[1734067313942,0.25098,226.94,226.81,11.022]
[1734067314143,23.776884,226.93,226.81,11.022]
[1734067314344,0.25098,226.92,226.81,11.022]
[1734067314581,0.25098,226.92,226.87,8.26812037]
[1734067315265,0.25098,226.92,226.81,11.022]
[1734067315551,0.25098,226.92,226.87,8.26812037]
[1734067318085,0.25098,226.93,226.87,8.26812037]
[1734067320367,0.12549,226.93,226.88,8.26812037]
[1734067320574,0.25098,226.94,226.88,8.26812037]
[1734067321774,0.25098,226.94,226.89,8.26812037]
[1734067322153,0.25098,226.94,226.88,8.26812037]
[1734067324950,0.25098,226.94,226.82,0.66109718]
[1734067325284,23.776884,226.93,226.87,8.26812037]
[1734067325465,23.776884,226.93,226.82,0.66109718]
[1734067325782,0.25098,226.92,226.88,8.26812037]
[1734067326479,23.776884,226.94,226.88,8.26812037]
[1734067326645,0.25098,226.93,226.88,8.26812037]
[1734067327180,0.25098,226.88,226.81,8.26812037]
[1734067327476,0.25098,226.88,226.76,11.0244]
[1734067327660,1.82638,226.88,226.76,11.0244]
[1734067327858,23.776884,226.87,226.81,8.26812037]
[1734067328252,0.12549,226.86,226.81,8.26812037]
[1734067328451,0.12549,226.86,226.82,8.26812037]
[1734067328673,0.12549,226.86,226.76,11.0244]
[1734067328888,0.12549,226.86,226.82,8.26812037]
[1734067329775,8.39361037,226.86,226.79,8.26812037]
[1734067329976,0.12549,226.86,226.81,8.26812037]
[1734067330216,0.12549,226.86,226.8,8.26812037]
[1734067330782,0.12549,226.86,226.81,8.26812037]
[1734067331081,0.12549,226.86,226.8,8.26812037]
[1734067332311,0.12549,226.86,226.75,20.66130778]
[1734067332485,23.776884,226.85,226.73,0.66133304]
[1734067332683,23.776884,226.85,226.79,8.26812037]
[1734067336516,32.04500437,226.85,226.73,0.66133304]
[1734067336736,8.39361037,226.84,226.77,8.26812037]
[1734067336919,23.776884,226.83,226.77,8.26812037]
[1734067337228,0.12549,226.82,226.77,8.26812037]
[1734067339231,0.12549,226.82,226.76,8.26812037]
[1734067339391,23.776884,226.79,226.73,8.26812037]
[1734067339601,0.12549,226.78,226.73,8.26812037]
[1734067339803,8.39361037,226.78,226.68,0.66153114]
[1734067340012,0.12549,226.76,226.7,8.26812037]
[1734067340495,0.12549,226.76,226.71,8.26812037]
[1734067341126,23.776884,226.79,226.74,8.26812037]
[1734067341330,0.12549,226.78,226.74,8.26812037]
[1734067341918,0.12549,226.78,226.73,8.26812037]
[1734067342239,0.12549,226.78,226.72,8.26812037]
[1734067342527,8.39361037,226.78,226.71,8.26812037]
[1734067343030,23.776884,226.77,226.71,8.26812037]
[1734067343534,23.776884,226.77,226.66,20.0]
[1734067343535,0.12549,226.76,226.66,20.0]
[1734067343705,0.12549,226.76,226.64,0.66156693]
[1734067343706,23.776884,226.75,226.7,8.26812037]
[1734067344118,32.04500437,226.75,226.64,0.66156693]
[1734067344427,23.776884,226.75,226.7,8.26812037]
[1734067344640,23.776884,226.75,226.64,0.66156693]
[1734067344842,23.776884,226.75,226.7,8.26812037]
[1734067345009,0.12549,226.74,226.7,8.26812037]
[1734067346444,23.776884,226.76,226.7,8.26812037]
[1734067346653,0.12549,226.75,226.7,8.26812037]
[1734067350144,23.776884,226.76,226.71,8.26812037]
[1734067350460,20.0,226.77,226.73,8.26812037]
[1734067351216,20.0,226.77,226.72,8.26812037]
[1734067351756,23.776884,226.76,226.71,8.26812037]
[1734067352955,23.776884,226.76,226.72,8.26812037]
[1734067358778,23.776884,226.78,226.72,8.26812037]
[1734067358989,0.12549,226.77,226.72,8.26812037]
[1734067362763,0.12549,226.77,226.71,8.26812037]
[1734067363652,8.39361037,226.77,226.68,0.66154723]
[1734067363858,23.776884,226.76,226.71,8.26812037]
[1734067364481,23.902374,226.77,226.71,8.26812037]
[1734067365885,0.12549,226.77,226.72,8.26812037]
[1734067366461,0.12549,226.77,226.67,3.32266572]
[1734067366783,23.776884,226.76,226.66,20.0]
[1734067366984,23.902374,226.75,226.69,8.26812037]
[1734067367659,23.776884,226.73,226.65,0.66155453]
[1734067367865,23.902374,226.71,226.65,8.26812037]
[1734067368684,23.902374,226.71,226.63,8.26812037]
[1734067368988,23.776884,226.69,226.62,8.26812037]